bitfinex-derivatives/quotes_SOLF0:USTF0_20240923
["timestamp","ask_amount","ask_price","bid_price","bid_amount"]
[1727077247442,7.37,145.91,145.86,7.37]
[1727077247843,3.4271,145.9,145.87,3.4277]
[1727077248041,7.37,145.91,145.86,7.37]
[1727077248449,10.797,145.91,145.88,3.4276]
[1727077248844,10.797,145.91,145.86,7.37]
[1727077249045,10.797,145.91,145.87,3.4277]
[1727077249239,3.427,145.91,145.87,3.4277]
[1727077249444,10.797,145.91,145.87,10.7977]
[1727077250243,7.37,145.91,145.87,3.4277]
[1727077250950,3.4271,145.9,145.87,3.4277]
[1727077252146,7.37,145.91,145.86,7.37]
[1727077252351,3.4274,145.89,145.86,10.798]
[1727077252742,10.7974,145.89,145.86,3.428]
[1727077253953,3.4274,145.89,145.86,3.428]
[1727077260565,3.4276,145.88,145.85,3.4282]
[1727077260862,7.37,145.87,145.83,11.5236]
[1727077261258,7.37,145.87,145.84,3.4285]
[1727077261767,10.7979,145.87,145.84,3.4285]
[1727077262662,7.37,145.86,145.83,1.4432]
[1727077262865,7.37,145.85,145.82,78.66939973]
[1727077263166,7.37,145.84,145.8,3.39013852]
[1727077263359,7.37,145.84,145.79,7.37]
[1727077263666,7.37,145.82,145.78,7.37]
[1727077264361,7.37,145.82,145.8,3.4293]
[1727077264764,7.37,145.81,145.77,11.5334]
[1727077265068,7.37,145.81,145.77,14.92492205]
[1727077265269,6.09444826,145.89,145.78,7.37]
[1727077265457,3.4286,145.84,145.8,10.7993]
[1727077265766,3.4286,145.84,145.8,7.37]
[1727077265966,10.7989,145.83,145.79,10.7995]
[1727077266475,7.37,145.83,145.79,7.37]
[1727077266770,7.37,145.87,145.81,7.37]
[1727077267565,1.0,145.88,145.83,7.37]
[1727077267768,8.37,145.88,145.83,7.37]
[1727077268069,7.37,145.9,145.86,7.37]
[1727077268365,3.4274,145.89,145.86,10.7979]
[1727077268770,10.7972,145.9,145.86,10.7979]
[1727077268973,10.7972,145.9,145.87,3.4278]
[1727077270365,3.4272,145.9,145.87,3.4278]
[1727077271169,3.427,145.91,145.87,3.4278]
[1727077271369,11.52,145.94,145.88,3.4276]
[1727077271968,11.52,145.94,145.85,14.91632347]
[1727077272162,11.52,145.94,145.86,1.339]
[1727077272366,11.52,145.94,145.86,2.7564]
[1727077272569,3.4266,145.93,145.89,3.4272]
[1727077273165,11.52,145.94,145.9,3.4269]
[1727077273371,11.52,145.94,145.86,2.7564]
[1727077273566,3.4267,145.92,145.88,3.4275]
[1727077273771,11.52,145.94,145.88,3.4275]
[1727077274672,11.52,145.92,145.87,3.4278]
[1727077274874,11.52,145.92,145.86,2.7564]
[1727077275074,3.4273,145.9,145.86,6.1843]
[1727077275283,11.52,145.92,145.86,4.7669]
[1727077275772,3.4273,145.9,145.87,3.4278]
[1727077275977,11.52,145.92,145.86,1.339]
[1727077277978,11.52,145.94,145.86,1.339]
[1727077278373,3.4268,145.92,145.89,3.4274]
[1727077281482,3.4266,145.93,145.89,3.4274]
[1727077281673,11.52,145.92,145.87,3.4277]
[1727077281876,11.52,145.92,145.86,1.339]
[1727077282175,3.4273,145.9,145.87,3.4277]
[1727077282381,11.52,145.92,145.86,1.339]
[1727077283085,3.427,145.91,145.88,3.4274]
[1727077286985,3.427,145.91,145.87,3.4277]
[1727077287677,3.4272,145.9,145.87,3.4277]
[1727077288676,11.52,145.9,145.82,2.7568]
[1727077289079,1.4255,145.89,145.82,1.3584]
[1727077289279,3.428,145.87,145.83,3.4286]
[1727077290286,10.798,145.87,145.83,3.4286]
[1727077291186,10.798,145.87,145.84,3.4285]
[1727077296891,10.798,145.87,145.83,3.4287]
[1727077298689,82.28,146.02,145.82,8.7284]
[1727077298887,7.37,145.88,145.82,8.7284]
[1727077299292,7.37,145.86,145.84,3.4284]
[1727077300093,7.37,145.86,145.83,3.4287]
[1727077300297,10.7981,145.86,145.83,3.4287]
[1727077300991,10.7983,145.85,145.82,1.3584]
[1727077301198,10.7983,145.85,145.81,78.68085143]
[1727077301898,10.7983,145.85,145.82,3.4289]
[1727077302095,7.37,145.85,145.81,78.68085143]
[1727077302797,7.37,145.85,145.82,3.429]
[1727077305201,10.7984,145.85,145.82,3.429]
[1727077309101,7.37,145.85,145.82,3.429]
[1727077309800,1.4016,145.89,145.81,78.68085143]
[1727077309801,7.37,145.83,145.81,78.68085143]
[1727077310005,7.37,145.82,145.74,82.3]
[1727077310202,7.37,145.79,145.75,1.3909]
[1727077310410,7.37,145.79,145.76,6.91487735]
[1727077310703,7.37,145.79,145.76,3.4302]
[1727077310903,7.37,145.79,145.77,3.4302]
[1727077312008,7.37,145.79,145.75,1.3909]
[1727077312009,7.37,145.78,145.75,1.3909]
[1727077312398,7.37,145.78,145.75,4.8215]
[1727077312799,7.37,145.78,145.75,4.76549159]
[1727077313011,10.7999,145.78,145.75,4.8215]
[1727077313406,7.37,145.78,145.74,82.3]
[1727077313605,10.8001,145.78,145.74,85.7307]
[1727077313800,10.8001,145.78,145.71,4.1336]
[1727077313801,7.37,145.77,145.72,7.37]
[1727077314001,7.37,145.75,145.71,2.7407]
[1727077314204,7.37,145.75,145.71,4.82645633]
[1727077314205,7.37,145.74,145.71,4.82645633]
[1727077314407,7.37,145.74,145.7,78.73964491]
[1727077314829,10.801,145.74,145.7,82.17134491]
[1727077315514,7.37,145.71,145.67,2.7207]
[1727077315711,7.37,145.71,145.66,89.67]
[1727077315905,7.37,145.71,145.66,7.37]
[1727077316403,7.37,145.71,145.67,3.4325]
[1727077316805,7.37,145.71,145.68,3.4323]
[1727077317517,7.37,145.7,145.67,3.4324]
[1727077317816,7.37,145.7,145.65,7.37]
[1727077318108,7.37,145.7,145.66,3.4325]
[1727077318908,7.37,145.7,145.67,3.4325]
[1727077321508,7.37,145.69,145.67,3.4325]
[1727077323213,7.37,145.69,145.66,3.4327]
[1727077323619,7.37,145.69,145.65,3.4328]
[1727077323620,10.8022,145.69,145.65,3.4328]
[1727077323818,10.8022,145.69,145.64,7.37]
[1727077324316,7.37,145.67,145.63,1.4004]
[1727077324516,7.37,145.64,145.6,7.37]
[1727077324719,7.37,145.64,145.62,3.4335]
[1727077324928,7.37,145.66,145.62,3.47466355]
[1727077325112,7.37,145.66,145.61,7.37]
[1727077325821,7.37,145.66,145.64,3.4332]
[1727077326211,4.1093,145.74,145.57,4.1427]
[1727077326212,7.37,145.65,145.57,4.1427]
[1727077326411,7.37,145.65,145.6,7.37]
[1727077326723,7.37,145.63,145.61,3.4338]
[1727077327924,7.37,145.63,145.62,3.4337]
[1727077328320,7.37,145.63,145.57,4.1427]
[1727077328627,7.37,145.61,145.59,3.4342]
[1727077330024,3.4336,145.63,145.57,7.51563956]
[1727077330025,7.37,145.62,145.58,7.37]
[1727077330718,7.37,145.62,145.6,3.434]
[1727077330919,7.37,145.62,145.58,7.37]
[1727077331119,7.37,145.62,145.57,7.51563956]
[1727077331315,7.37,145.62,145.57,14.88563956]
[1727077331919,7.37,145.62,145.59,3.4343]
[1727077332315,7.37,145.61,145.59,3.4343]
[1727077332822,7.37,145.6,145.55,3.4279041]
[1727077333024,7.37,145.56,145.55,3.4279041]
[1727077333419,3.41828673,145.62,145.55,3.4279041]
[1727077333420,7.37,145.58,145.55,3.4279041]
[1727077333626,2.901,145.64,145.54,7.37]
[1727077333825,7.37,145.59,145.54,7.37]
[1727077335724,7.37,145.59,145.56,3.4349]
[1727077336230,7.37,145.59,145.54,7.37]
[1727077336621,7.37,145.59,145.5,7.66484319]
[1727077336823,7.37,145.6,145.55,7.37]
[1727077337326,7.37,145.6,145.58,3.4346]
[1727077339630,7.37,145.6,145.57,3.4348]
[1727077339931,7.37,145.58,145.57,3.4348]
[1727077340129,7.37,145.58,145.56,3.4351]
[1727077340328,7.37,145.58,145.53,7.37]
[1727077341033,7.37,145.58,145.55,3.4352]
[1727077341831,7.37,145.57,145.55,3.4352]
[1727077344639,2.901,145.64,145.54,7.37]
[1727077345143,1.3722,145.65,145.56,7.37]
[1727077345144,7.37,145.61,145.56,7.37]
[1727077345649,7.37,145.61,145.59,3.4342]
[1727077346139,7.37,145.6,145.59,3.4342]
[1727077346740,7.37,145.6,145.58,3.4346]
[1727077350139,7.37,145.59,145.57,3.4348]
[1727077351847,3.4341,145.61,145.57,3.4348]
[1727077352150,7.37,145.61,145.56,7.37]
[1727077352647,7.37,145.61,145.58,3.4344]
[1727077353046,7.37,145.61,145.56,7.37]
[1727077354143,7.37,145.61,145.59,3.4344]
[1727077354341,7.37,145.6,145.56,7.37]
[1727077354648,7.37,145.6,145.58,3.4345]
[1727077354846,7.37,145.6,145.55,7.37]
[1727077355551,7.37,145.6,145.57,3.4348]
[1727077355745,7.37,145.6,145.55,7.37]
[1727077359247,7.37,145.6,145.57,3.4347]
[1727077359443,7.37,145.62,145.57,7.37]
[1727077360046,7.37,145.62,145.59,3.4343]
[1727077361455,7.37,145.63,145.59,3.36619718]
[1727077361657,7.37,145.63,145.58,7.37]
[1727077361856,7.37,145.62,145.59,3.4343]
[1727077364955,7.37,145.61,145.59,3.4343]
[1727077366657,17.0,145.54,145.32,3.02310848]
[1727077366858,17.0,145.54,145.42,7.37]
[1727077366859,7.37,145.48,145.42,7.37]
[1727077367053,4.1419,145.53,145.43,7.37]
[1727077367257,7.37,145.48,145.4,1.324]
[1727077367460,7.37,145.48,145.42,7.37]
[1727077367769,3.4377,145.46,145.42,7.37]
[1727077367967,7.37,145.48,145.43,7.37]
[1727077368361,3.4376,145.46,145.41,14.99851274]
[1727077368665,11.55,145.5,145.41,14.99851274]
[1727077368967,11.55,145.5,145.4,1.324]
[1727077369163,11.55,145.5,145.4,12.874]
[1727077369564,3.4379,145.45,145.4,16.29970308]
[1727077369870,11.55,145.5,145.4,16.29970308]
[1727077370170,11.55,145.48,145.4,16.29970308]
[1727077370676,3.4378,145.45,145.4,16.29970308]
[1727077372769,11.55,145.51,145.42,11.55]
[1727077373170,3.4377,145.45,145.4,16.29970308]
[1727077373562,11.55,145.47,145.4,4.74970308]
[1727077374163,3.4378,145.45,145.4,4.74970308]
[1727077375169,3.438,145.44,145.4,4.74970308]
[1727077376576,11.55,145.47,145.4,4.74970308]
[1727077377672,11.55,145.49,145.4,4.74970308]
[1727077377863,3.4379,145.45,145.4,4.74970308]
[1727077378066,11.55,145.49,145.4,4.74970308]
[1727077378675,3.438,145.44,145.4,4.74970308]
[1727077378877,11.55,145.5,145.41,11.55]
[1727077379067,3.4377,145.46,145.41,11.55]
[1727077380280,3.4377,145.45,145.41,14.9886]
[1727077380577,11.55,145.48,145.4,4.74970308]
[1727077380880,3.4376,145.46,145.4,4.74970308]
[1727077381083,11.55,145.48,145.4,4.74970308]
[1727077381582,3.4376,145.46,145.4,8.18840308]
[1727077381978,11.55,145.48,145.4,8.18840308]
[1727077382276,11.55,145.48,145.4,4.74970308]
[1727077382875,3.4378,145.45,145.41,3.4386]
[1727077383582,3.4376,145.46,145.41,3.4386]
[1727077386280,3.4376,145.46,145.41,14.9886]
[1727077387184,3.4376,145.46,145.42,3.4384]
[1727077388283,3.4376,145.46,145.44,7.39]
[1727077389486,3.4376,145.46,145.43,7.39]
[1727077391381,3.4376,145.46,145.42,7.39]
[1727077391582,3.4376,145.46,145.42,10.8284]
[1727077392983,3.4376,145.46,145.43,7.39]
[1727077393184,3.4376,145.46,145.44,7.39]
[1727077394285,1.3963,145.53,145.45,7.39]
[1727077394491,2.6505,145.58,145.49,7.39]
[1727077394691,7.39,145.54,145.49,7.39]
[1727077395285,3.436,145.53,145.49,10.8891748]
[1727077395679,3.436,145.53,145.49,14.3259748]
[1727077396385,7.39,145.52,145.47,7.39]
[1727077396785,3.4364,145.51,145.47,10.8272]
[1727077397178,3.4364,145.51,145.48,3.40977857]
[1727077398180,7.39,145.52,145.48,3.40977857]
[1727077398985,3.4364,145.51,145.48,3.40977857]
[1727077399184,3.4364,145.51,145.47,10.8271]
[1727077399788,3.4364,145.51,145.48,7.39]
[1727077400189,3.4361,145.52,145.49,3.35888094]
[1727077400685,7.39,145.53,145.49,3.35888094]
[1727077400885,7.39,145.53,145.49,10.74888094]
[1727077401088,7.39,145.54,145.49,10.8266]
[1727077401588,4.1041,145.58,145.52,7.39]
[1727077401788,7.39,145.56,145.52,7.39]
[1727077402291,1.4536,145.58,145.53,7.39]
[1727077402591,8.8436,145.58,145.53,7.39]
[1727077402790,3.4349,145.57,145.54,3.4355]
[1727077403189,7.39,145.57,145.52,10.77591634]
[1727077403395,7.39,145.56,145.51,7.39]
[1727077404292,7.39,145.56,145.5,3.40516621]
[1727077404595,7.39,145.56,145.51,7.39]
[1727077404797,10.8253,145.56,145.52,3.436]
[1727077405900,10.8253,145.56,145.52,10.826]
[1727077408094,10.8253,145.56,145.52,3.436]
[1727077408296,10.8253,145.56,145.52,10.826]
[1727077408695,3.4353,145.56,145.52,10.826]
[1727077410399,10.825,145.57,145.52,10.826]
[1727077412297,2.7933,145.64,145.54,7.39]
[1727077412492,7.39,145.59,145.54,7.39]
[1727077413102,3.4346,145.59,145.56,7.39]
[1727077413697,7.39,145.62,145.57,7.39]
[1727077414302,7.39,145.62,145.58,3.4346]
[1727077414612,1.3251,145.63,145.58,3.4346]
[1727077414901,10.8238,145.62,145.58,3.4346]
[1727077415107,7.39,145.62,145.58,3.4346]
[1727077415502,3.434,145.61,145.58,3.4346]
[1727077415910,7.39,145.62,145.58,3.4346]
[1727077416209,10.8238,145.62,145.58,3.4346]
[1727077416506,7.39,145.62,145.57,7.39]
[1727077417398,8.7151,145.63,145.58,7.39]
[1727077417805,8.7151,145.63,145.6,3.4341]
[1727077418608,12.1487,145.63,145.6,3.4341]
[1727077418913,8.7151,145.63,145.61,3.4338]
[1727077419109,70.37565341,145.72,145.59,7.39]
[1727077419308,70.37565341,145.72,145.61,7.39]
[1727077419309,7.39,145.66,145.61,7.39]
[1727077419507,1.3942,145.68,145.62,7.39]
[1727077419715,1.3942,145.68,145.64,7.39]
[1727077420012,1.3942,145.68,145.65,3.4328]
[1727077420801,7.39,145.67,145.63,7.39]
[1727077422113,10.8227,145.67,145.63,10.8233]
[1727077423107,10.8227,145.67,145.64,3.4332]
[1727077423516,10.8227,145.67,145.63,7.39]
[1727077424117,10.8227,145.67,145.61,3.43314322]
[1727077424118,73.79361232,145.72,145.64,7.39]
[1727077424319,7.39,145.69,145.64,7.39]
[1727077425019,7.39,145.7,145.65,7.39]
[1727077425409,3.4321,145.69,145.66,3.4326]
[1727077426014,3.4321,145.69,145.65,7.39]
[1727077426015,3.4321,145.69,145.65,10.823]
[1727077428121,3.4319,145.7,145.67,7.39]
[1727077428317,93.39449172,146.0,145.68,7.39]
[1727077428318,7.16940641,145.92,145.68,7.39]
[1727077428619,7.39,145.72,145.68,7.39]
[1727077428808,7.39,145.72,145.59,78.79980998]
[1727077428809,7.39,145.72,145.67,7.39]
[1727077429219,3.4318,145.71,145.67,10.8224]
[1727077429817,10.8218,145.71,145.67,10.8224]
[1727077430421,7.39,145.69,145.64,7.39]
[1727077430717,7.39,145.69,145.63,10.76201318]
[1727077430912,7.39,145.69,145.63,7.39]
[1727077431329,7.39,145.69,145.64,3.41492721]
[1727077431726,10.8222,145.69,145.65,10.8229]
[1727077432533,3.4324,145.68,145.65,10.8229]
[1727077433134,1.4417,145.7,145.66,10.8228]
[1727077433633,4.8737,145.7,145.66,10.8228]
[1727077434531,4.8737,145.7,145.67,10.8225]
[1727077434735,4.8737,145.7,145.67,3.4325]
[1727077436034,3.4321,145.69,145.66,10.8227]
[1727077436438,1.4417,145.7,145.66,7.39]
[1727077436939,3.4321,145.69,145.66,10.8226]
[1727077437139,1.4417,145.7,145.66,7.39]
[1727077437440,4.8737,145.7,145.67,3.4325]
[1727077437634,1.0,145.78,145.69,7.39]
[1727077437836,1.3863,145.77,145.71,7.39]
[1727077438037,7.39,145.76,145.71,7.39]
[1727077438240,3.4311,145.74,145.71,10.8215]
[1727077439346,7.39,145.75,145.71,7.39]
[1727077441538,3.4313,145.73,145.71,7.39]
[1727077441740,7.39,145.75,145.71,7.39]
[1727077441940,3.4318,145.7,145.68,7.39]
[1727077442138,7.39,145.73,145.68,7.39]
[1727077442334,7.39,145.74,145.69,7.39]
[1727077443143,3.4317,145.71,145.69,7.39]
[1727077443347,1.3863,145.77,145.66,2.7303]
[1727077443546,7.39,145.74,145.69,7.39]
[1727077443849,3.4312,145.73,145.7,7.39]
[1727077444840,3.4312,145.73,145.7,10.8218]
[1727077445644,3.4312,145.73,145.71,3.4316]
[1727077445846,3.4312,145.73,145.7,7.39]
[1727077446545,3.4308,145.75,145.71,7.39]
[1727077446752,8.7763,145.77,145.71,7.39]
[1727077448447,3.4309,145.74,145.71,10.8215]
[1727077449352,3.4309,145.74,145.71,7.39]
[1727077449554,7.39,145.74,145.7,7.39]
[1727077449865,7.39,145.73,145.68,10.8223]
[1727077450349,3.4317,145.71,145.68,7.39]
[1727077450550,7.39,145.73,145.68,7.39]
[1727077450755,7.39,145.74,145.7,7.39]
[1727077451149,3.4314,145.72,145.7,7.39]
[1727077451351,7.39,145.73,145.69,7.39]
[1727077451953,3.4316,145.71,145.69,7.39]
[1727077457156,3.4318,145.7,145.69,7.39]
[1727077458057,3.4323,145.68,145.64,3.4332]
[1727077458369,3.4323,145.68,145.66,7.39]
[1727077458558,3.4325,145.67,145.66,7.39]
[1727077459063,7.39,145.72,145.66,7.39]
[1727077459263,3.4323,145.69,145.67,7.39]
[1727077460251,3.4323,145.69,145.63,3.44134001]
[1727077460252,3.4323,145.69,145.68,7.39]
[1727077464967,3.432,145.7,145.68,7.39]
[1727077467161,3.432,145.7,145.68,8.39]
[1727077469967,7.39,145.74,145.68,1.0]
[1727077470867,3.432,145.7,145.68,1.0]
[1727077471068,3.432,145.7,145.69,7.39]
[1727077480681,8.2468,145.77,145.69,7.39]
[1727077480682,1.3863,145.77,145.69,7.39]
[1727077480893,1.3863,145.77,145.73,7.39]
[1727077481092,1.0,145.78,145.74,7.39]
[1727077481284,3.4308,145.75,145.74,7.39]
[1727077481792,1.0,145.78,145.74,7.39]
[1727077482091,8.7764,145.81,145.76,7.39]
[1727077482387,3.4304,145.77,145.76,7.39]
[1727077482783,3.4307,145.75,145.74,7.39]
[1727077482984,7.39,145.78,145.72,7.39]
[1727077483484,3.4308,145.75,145.72,7.39]
[1727077484386,3.4309,145.74,145.72,7.39]
[1727077485097,7.39,145.77,145.72,7.39]
[1727077486384,3.431,145.74,145.72,7.39]
[1727077489097,3.4311,145.73,145.72,7.39]
[1727077490301,3.431,145.74,145.72,7.39]
[1727077492499,3.431,145.74,145.73,7.39]
[1727077500497,3.4307,145.75,145.73,7.39]
[1727077500698,3.4307,145.75,145.74,7.39]
[1727077510100,3.4311,145.74,145.71,3.4316]
[1727077510307,3.4311,145.74,145.73,7.39]
[1727077511508,7.39,145.78,145.72,7.39]
[1727077511909,3.34922637,145.77,145.69,1.3765]
[1727077512109,7.39,145.73,145.68,8.39]
[1727077512710,3.4321,145.69,145.68,8.39]
[1727077513206,3.4319,145.7,145.68,8.39]
[1727077513401,7.39,145.73,145.69,7.39]
[1727077513618,10.1262,145.75,145.69,7.39]
[1727077514717,10.1262,145.75,145.71,7.39]
[1727077514718,3.4314,145.72,145.71,7.39]
[1727077518606,8.7795,145.76,145.71,7.39]
[1727077520408,3.4313,145.73,145.71,7.39]
[1727077520613,8.7795,145.76,145.71,7.39]
[1727077523313,3.4314,145.72,145.71,7.39]
[1727077524520,7.39,145.73,145.68,8.39]
[1727077525018,3.4321,145.69,145.68,8.39]
[1727077525715,3.4321,145.69,145.68,1.0]
[1727077532625,7.39,145.73,145.68,11.8223]
[1727077532829,10.0627,145.74,145.68,8.39]
[1727077533127,10.0627,145.74,145.69,7.39]
[1727077533715,3.4318,145.7,145.69,7.39]
[1727077535430,3.4321,145.69,145.68,8.39]
[1727077543033,3.4321,145.69,145.68,1.0]
[1727077549130,3.4331,145.65,145.62,7.39]
[1727077549637,3.4331,145.65,145.62,10.8235]
[1727077550335,3.4331,145.65,145.61,1.3762]
[1727077550336,7.39,145.66,145.61,12.2001]
[1727077550541,7.39,145.67,145.62,7.39]
[1727077550732,7.39,145.68,145.63,7.39]
[1727077551141,3.4331,145.65,145.63,7.39]
[1727077552640,7.39,145.68,145.62,3.4336]
[1727077552641,3.4332,145.64,145.62,7.39]
[1727077553245,3.4335,145.63,145.62,7.39]
[1727077554538,3.4333,145.64,145.62,7.39]
[1727077556733,3.4335,145.63,145.62,7.39]
[1727077557942,7.39,145.64,145.55,81.56541334]
[1727077558239,7.39,145.63,145.57,7.39]
[1727077558440,3.4343,145.6,145.57,7.39]
[1727077558635,3.4343,145.6,145.57,10.8249]
[1727077559042,3.4343,145.6,145.58,7.39]
[1727077559846,3.4343,145.6,145.58,10.8246]
[1727077561043,3.4343,145.6,145.58,7.39]
[1727077561235,3.4344,145.59,145.58,7.39]
[1727077561743,7.39,145.63,145.58,7.39]
[1727077564642,3.4342,145.6,145.58,7.39]
[1727077564838,3.4342,145.6,145.57,3.4347]
[1727077565152,7.39,145.58,145.48,82.4]
[1727077565448,7.39,145.56,145.51,7.39]
[1727077565839,7.39,145.56,145.49,4.1368]
[1727077566049,7.39,145.56,145.51,10.8262]
[1727077566446,3.4358,145.54,145.51,10.8262]
[1727077567545,3.4359,145.53,145.5,3.4363]
[1727077567740,3.4359,145.53,145.5,10.8263]
[1727077568847,7.39,145.55,145.5,7.39]
[1727077569558,3.436,145.53,145.5,10.8265]
[1727077570157,7.39,145.53,145.49,10.1806]
[1727077570652,13.1832057,145.62,145.5,7.39]
[1727077570856,7.39,145.56,145.51,7.39]
[1727077571357,3.4356,145.54,145.51,10.8262]
[1727077573759,3.4358,145.53,145.51,10.8262]
[1727077574260,3.4358,145.53,145.5,10.8265]
[1727077574759,7.39,145.52,145.49,2.7906]
[1727077575554,10.8261,145.52,145.49,2.7906]
[1727077575760,7.39,145.54,145.49,2.7906]
[1727077576357,3.436,145.53,145.5,3.4365]
[1727077576858,3.4357,145.54,145.51,3.4363]
[1727077577063,3.4357,145.54,145.51,10.8263]
[1727077577561,3.4359,145.53,145.51,7.39]
[1727077577766,3.4359,145.53,145.5,3.4365]
[1727077578262,3.4361,145.52,145.49,6.2273]
[1727077579662,3.4361,145.52,145.5,3.4365]
[1727077580254,10.8261,145.52,145.49,6.2273]
[1727077585570,3.4364,145.51,145.49,4.8593]
[1727077585868,3.4364,145.51,145.49,3.4367]
[1727077586370,10.8261,145.52,145.49,3.4367]
[1727077586569,3.4361,145.52,145.49,10.8267]
[1727077587566,3.4363,145.51,145.48,3.4369]
[1727077587768,3.4363,145.51,145.48,10.8269]
[1727077589671,10.8262,145.52,145.49,3.4367]
[1727077589865,3.4362,145.52,145.49,3.4367]
[1727077590068,1.0,145.61,145.49,7.39]
[1727077590268,7.39,145.54,145.49,7.39]
[1727077591158,3.436,145.53,145.5,3.4365]
[1727077591668,1.0,145.61,145.52,7.39]
[1727077591866,3.4349,145.57,145.54,7.39]
[1727077592066,7.39,145.59,145.54,7.39]
[1727077592566,3.4349,145.57,145.54,10.8254]
[1727077594065,3.4348,145.58,145.55,3.4353]
[1727077594868,7.39,145.58,145.53,7.39]
[1727077595583,3.4352,145.56,145.53,10.8257]
[1727077597880,3.435,145.57,145.54,3.4355]
[1727077598069,1.0,145.61,145.54,7.39]
[1727077598270,7.39,145.59,145.54,7.39]
[1727077598479,3.4349,145.58,145.55,3.4352]
[1727077598970,3.4347,145.58,145.55,3.4353]
[1727077599976,1.0,145.61,145.57,7.39]
[1727077600376,3.4343,145.6,145.57,10.8248]
[1727077601479,3.4343,145.6,145.57,3.4348]
[1727077601781,3.4343,145.6,145.57,10.8248]
[1727077606383,3.4343,145.6,145.55,2.7294]
[1727077606384,3.4348,145.58,145.55,13.5547]
[1727077606586,7.39,145.6,145.55,6.1647]
[1727077607075,3.4348,145.58,145.56,3.4351]
[1727077607480,7.39,145.6,145.56,3.4351]
[1727077607682,3.4346,145.59,145.56,3.4351]
[1727077607985,7.39,145.58,145.53,7.39]
[1727077608682,3.435,145.57,145.54,3.4354]
[1727077608888,3.435,145.57,145.53,7.39]
[1727077609788,3.435,145.57,145.54,3.4354]
[1727077611090,7.39,145.59,145.55,7.39]
[1727077612286,3.4345,145.59,145.55,7.39]
[1727077612682,7.39,145.6,145.55,7.39]
[1727077612983,3.4348,145.58,145.55,10.8253]
[1727077613492,7.39,145.6,145.55,7.39]
[1727077614486,7.39,145.6,145.55,10.8252]
[1727077614487,3.4349,145.58,145.55,10.8252]
[1727077616493,7.39,145.58,145.53,7.39]
[1727077616988,7.39,145.58,145.5,2.7357]
[1727077616989,3.4353,145.56,145.52,10.826]
[1727077617194,3.4353,145.56,145.52,7.39]
[1727077617703,3.4353,145.56,145.53,10.8257]
[1727077618998,3.4354,145.55,145.52,3.436]
[1727077619189,3.4354,145.55,145.51,7.39]
[1727077619390,7.39,145.56,145.5,2.7357]
[1727077619391,7.39,145.58,145.53,7.39]
[1727077619695,3.4353,145.56,145.53,10.8258]